fUSD/lending_fUSD_20240319
["ID","MTS","AMOUNT","RATE_DAILY","PERIOD"]
[319609153,1710887432492,-8340.32100013,0.000142,2]
[319609155,1710887432502,-365.72,0.00014223,2]
[319609157,1710887432511,-365.72,0.00014262,2]
[319609159,1710887432521,-365.72,0.000143,2]
[319609162,1710887432531,-155.44710073,0.00014325,2]
[319609165,1710887432541,-365.72,0.00014339,2]
[319609167,1710887432550,-365.72,0.00014377,2]
[319609171,1710887432560,-698.0,0.00014408,2]
[319609173,1710887432569,-365.72,0.00014416,2]
[319609175,1710887432578,-365.72,0.00014454,2]
[319609177,1710887432588,-155.44710073,0.00014469,2]
[319609179,1710887432598,-365.72,0.00014493,2]
[319609182,1710887432608,-365.72,0.00014531,2]
[319609185,1710887432618,-1000.0,0.00014552,2]
[319609187,1710887432628,-365.72,0.0001457,2]
[319609189,1710887432638,-365.72,0.00014608,2]
[319609191,1710887432648,-155.44710073,0.00014613,2]
[319609193,1710887432658,-365.72,0.00014647,2]
[319609194,1710887432667,-365.72,0.00014685,2]
[319609195,1710887432678,-365.72,0.00014724,2]
[319609196,1710887432687,-330.6228,0.00014743,2]
[319609197,1710887432697,-155.44710073,0.00014756,2]
[319609198,1710887432712,-365.72,0.00014762,2]
[319609199,1710887432723,-13872.51186287,0.00014843,2]
[319609200,1710887432735,-249.65614262,0.00014847,2]
[319609201,1710887432746,-499.99,0.00014847,2]
[319609202,1710887432757,-199.246,0.00014898,2]
[319609203,1710887432767,-2634.6714,0.00014898,2]
[319609204,1710887432778,-369.86917601,0.00014899,2]
[319609206,1710887432788,-1266.15,0.00014899,2]
[319609208,1710887432799,-1104.26968589,0.000149,2]
[319609210,1710887432810,-177.3883662,0.000149,2]
[319609212,1710887432821,-155.44710073,0.000149,2]
[319609215,1710887432835,-177.76920381,0.000149,2]
[319609217,1710887432847,-216.4966028,0.000149,2]
[319609219,1710887432858,-158.75,0.00014938,2]
[319609221,1710887432868,-423.93168887,0.0001499,2]
[319609223,1710887432879,-1508.95220275,0.0001499,2]
[319609225,1710887432890,-216.88932214,0.00014997,2]
[319609227,1710887432901,-164.81554789,0.00014997,2]
[319609229,1710887432911,-155.10930947,0.00014997,2]
[319609230,1710887432922,-833.38402736,0.00014997,2]
[319609232,1710887432933,-2749.59923419,0.00014997,2]
[319609234,1710887432944,-681.58772925,0.00014997,2]
[319609237,1710887432957,-171.44682565,0.00014997,2]
[319609238,1710887432968,-155.0,0.00014997,2]
[319609241,1710887432978,-155.0,0.00014997,2]
[319609243,1710887432988,-419.35925877,0.00014997,2]
[319609244,1710887432998,-340.39682863,0.00014997,2]
[319609247,1710887433009,-1234.50656779,0.00014997,2]
[319609248,1710887433019,-494.32031925,0.00014997,2]
[319609250,1710887433030,-189.64744642,0.00014997,2]
[319609253,1710887433039,-155.0,0.00014998,2]
[319609255,1710887433049,-2382.68397,0.00014998,2]
[319609257,1710887433059,-294.11425223,0.00014998,2]
[319609259,1710887433069,-155.0,0.00014999,2]
[319609261,1710887433078,-182.89873029,0.00014999,2]
[319609262,1710887433087,-155.0,0.00014999,2]
[319609264,1710887433097,-11011.69261018,0.00014999,2]
[319609269,1710887433136,-32524.1373238,0.00014999,2]
[319609272,1710887433148,-708.81693208,0.00014999,2]
[319609276,1710887433243,-14153.90889859,0.00014999,2]
[319609277,1710887433256,-3170.05,0.00014999,2]
[319609278,1710887433267,-743.09366255,0.00014999,2]
[319609279,1710887433279,-868.242415,0.00014999,2]
[319609280,1710887433291,-5389.6116729,0.00014999,2]
[319609281,1710887433302,-2551.93772065,0.00014999,2]
[319609282,1710887433326,-6371.86256031,0.00014999,2]
[319609283,1710887433339,-6512.34256345,0.00014999,2]
[319609284,1710887433351,-2695.6829457,0.00014999,2]
[319609285,1710887433363,-1297.9979338,0.00014999,2]
[319609286,1710887433374,-265.04004128,0.00014999,2]
[319609287,1710887433390,-2264.93365652,0.00014999,2]
[319609288,1710887433414,-64777.08172982,0.00014999,2]
[319609289,1710887433426,-982.25248,0.00014999,2]
[319609302,1710887437916,-465.1383717,0.00014999,2]
[319609303,1710887437992,-462.90397666,0.00014999,2]
[319609304,1710887438059,-3609.76789122,0.00014999,2]
[319609305,1710887438071,-6321.34962299,0.00014999,2]
[319609306,1710887438083,-1817.90671832,0.00014999,2]
[319609307,1710887438095,-650.7236566,0.00014999,2]
[319609308,1710887438109,-3164.72491697,0.00014999,2]
[319609309,1710887438128,-500.0,0.00014999,2]
[319609310,1710887438142,-999.88799996,0.00014999,2]
[319609311,1710887438154,-1016.16904659,0.00014999,2]
[319609312,1710887438194,-327.03154512,0.00014999,2]
[319609313,1710887438211,-196746.45396906,0.00014999,2]
[319609339,1710887439932,-5430.48384529,0.00014999,2]
[319609345,1710887440008,-4074.00630847,0.00014999,2]
[319609348,1710887441644,-61354.40070647,0.00014999,2]
[319609349,1710887441710,-187547.84601522,0.00014999,2]
[319609350,1710887441723,-22617.54468,0.00014999,2]
[319609351,1710887441777,-2380.010411,0.00014999,2]
[319609352,1710887441788,-2413.99477678,0.00014999,2]
[319609353,1710887441799,-1011.40400814,0.00014999,2]
[319609354,1710887441812,-342754.4518015,0.00014999,2]
[319609355,1710887441838,-2159.77614834,0.00014999,2]
[319609356,1710887441859,-821.83003093,0.00014999,2]
[319609357,1710887441872,-5988.89797761,0.00014999,2]
[319609358,1710887441885,-1576.9379362,0.00014999,2]
[319609359,1710887441897,-57799.90787039,0.00014999,2]
[319609360,1710887441907,-3412.2798651,0.00015,2]
[319609449,1710887443186,-792.29386324,0.00014998,2]
[319609452,1710887443199,-2037.12093676,0.00014998,2]
[319609454,1710887443210,-801.34246302,0.00015,2]
[319609461,1710887443355,-550.47305145,0.00015,2]
[319609462,1710887443367,-460.421585,0.00015,2]
[319609463,1710887443379,-678.68828236,0.00015,2]
[319609464,1710887443391,-323.8,0.00015,2]
[319609465,1710887443402,-432.89653833,0.00015,2]
[319609466,1710887443414,-1266.11078973,0.00015,2]
[319609467,1710887443426,-1896.949314,0.00015,2]
[319609468,1710887443458,-6205.47606976,0.00015,2]
[319609469,1710887443473,-2936.86016957,0.00015,2]
[319609470,1710887443485,-3575.05768858,0.00015,2]
[319609471,1710887443498,-3854.00407314,0.00015,2]
[319609472,1710887443514,-511.63426585,0.00015,2]
[319609473,1710887443526,-3586.337125,0.00015,2]
[319609474,1710887443538,-2582.59439791,0.00015,2]
[319609475,1710887443550,-12421.24466402,0.00015,2]
[319609476,1710887443581,-3665.46380159,0.00015,2]
[319609477,1710887443593,-2332.42062956,0.00015,2]
[319609478,1710887443605,-5124.0509938,0.00015,2]
[319609479,1710887443616,-747.37749413,0.00015,2]
[319609480,1710887443627,-10209.64031501,0.00015,2]
[319609481,1710887443638,-1085.25052183,0.00015,2]
[319609482,1710887443665,-523.47005919,0.00015,2]
[319609483,1710887443676,-799.15984365,0.00015,2]
[319609484,1710887443688,-19513.86110873,0.00015,2]
[319609485,1710887443708,-799.74560194,0.00015,2]
[319609486,1710887443721,-495.81569258,0.00015,2]
[319609487,1710887443733,-1497.14500477,0.00015,2]
[319609488,1710887443744,-3314.90591772,0.00015,2]
[319609491,1710887443758,-5580.95525892,0.00015,2]
[319609493,1710887443770,-984.32097765,0.00015,2]
[319609512,1710887446014,-509.99999988,0.00015,2]
[319609534,1710887446143,-70722.024867,0.00015,2]
[319609536,1710887446156,-3393.93265711,0.00015,2]
[319609539,1710887446174,-1967.11957361,0.00015,2]
[319609540,1710887446187,-255.25,0.00015,2]
[319609545,1710887446269,-115576.77118633,0.00015,2]
[319609547,1710887446282,-3162.5,0.00015,2]
[319609549,1710887446293,-707.70685128,0.00015,2]
[319609558,1710887446364,-282.26360807,0.00015,2]
[319609564,1710887446420,-420.31696282,0.00015,2]
[319609567,1710887446432,-253291.46148396,0.00015,2]
[319609569,1710887446446,-3168.75,0.00015,2]
[319609571,1710887446458,-295.69500796,0.00015,2]
[319609573,1710887446471,-12768.20000002,0.00015,2]
[319609595,1710887447268,260.42,0.00011687,2]
[319609596,1710887467623,6176.93641662,0.0001395,5]
[319609616,1710888539559,323.11942739,0.00014999,5]
[319609742,1710888632582,-150.0,0.00014533,2]
[319609744,1710888632593,-534.12503528,0.00014744,2]
[319609746,1710888632605,-340.82508517,0.00014745,2]
[319609748,1710888632615,-155.26218272,0.000148,2]
[319609751,1710888632625,-150.0,0.00014899,2]
[319609753,1710888632636,-14581.6978,0.000149,2]
[319609755,1710888632647,-1000.0,0.000149,2]
[319609757,1710888632660,-216.49660279,0.000149,2]
[319609758,1710888632671,-213.36997347,0.000149,2]
[319609759,1710888632681,-1000.0,0.000149,2]
[319609760,1710888632691,-13206.32340773,0.000149,2]
[319609761,1710888632703,-377.03481568,0.000149,2]
[319609763,1710888632715,-578.30002,0.000149,2]
[319609766,1710888632726,-22053.75,0.000149,2]
[319609767,1710888632737,-6480.84300003,0.000149,2]
[319609770,1710888632756,-575.17710851,0.000149,2]
[319609772,1710888632767,-408.39554196,0.000149,2]
[319609816,1710888633221,-12608.0285492,0.000149,2]
[319609817,1710888633250,-932.0,0.000149,2]
[319609818,1710888633272,-708.14116321,0.000149,2]
[319609819,1710888633285,-628.89,0.000149,2]
[319609825,1710888638253,-1450.95986378,0.000149,2]
[319609826,1710888638271,-266.93516672,0.000149,2]
[319609827,1710888638284,-5111.1039266,0.000149,2]
[319609828,1710888638296,-479.0799314,0.000149,2]
[319609829,1710888638312,-2336.80832456,0.000149,2]
[319609830,1710888638329,-31405.62409543,0.000149,2]
[319609839,1710888640335,-309.49937639,0.000149,2]
[319609840,1710888640346,-6444.49999999,0.000149,2]
[319609841,1710888640399,-629.50888,0.000149,2]
[319609842,1710888640410,-1800.15191399,0.000149,2]
[319609843,1710888640422,-8459.283911,0.000149,2]
[319609844,1710888640433,-2369.71207105,0.000149,2]
[319609845,1710888640445,-1594.01555162,0.000149,2]
[319609846,1710888640518,-3146.91552,0.000149,2]
[319609847,1710888640530,-32122.59025516,0.000149,2]
[319609848,1710888640543,-2500.0,0.000149,2]
[319609849,1710888640559,-1090.7317,0.000149,2]
[319609850,1710888640575,-235.95798628,0.00014998,2]
[319609851,1710888640585,-615.6961079,0.00014998,2]
[319609852,1710888640594,-157.80815582,0.00014998,2]
[319609853,1710888640604,-413.28361657,0.00014998,2]
[319609854,1710888640614,-2101.2739932,0.00014998,2]
[319609855,1710888640624,-5507.51645168,0.00014998,2]
[319609856,1710888640634,-155.0,0.00014998,2]
[319609857,1710888640644,-1877.08922523,0.00014998,2]
[319609858,1710888640664,-2332.6156611,0.00014998,2]
[319609908,1710888643200,-1867.14811746,0.00014998,2]
[319609910,1710888643212,-944.03810536,0.00014998,2]
[319609917,1710888643281,-2121.61670627,0.00014998,2]
[319609918,1710888643293,-839.11314173,0.00014998,2]
[319609919,1710888643308,-3025.46559579,0.00014998,2]
[319609920,1710888643321,-3781.72114861,0.00014998,2]
[319609921,1710888643336,-1078.42918292,0.00014998,2]
[319609922,1710888643349,-7218.36527992,0.00014998,2]
[319609923,1710888643529,-6619.37825539,0.00014998,2]
[319609924,1710888643543,-5892.18710606,0.00014998,2]
[319609925,1710888643554,-645.45086757,0.00014998,2]
[319609926,1710888643566,-5856.50383262,0.00014998,2]
[319609927,1710888643581,-3173.85882205,0.00014998,2]
[319609928,1710888643593,-5161.17181256,0.00014998,2]
[319609932,1710888646367,-1260.98355,0.00014998,2]
[319609933,1710888646383,-17872.54272388,0.00014998,2]
[319609934,1710888646393,-155.0,0.00014998,2]
[319609935,1710888646402,-155.0,0.00014998,2]
[319609936,1710888646412,-155.0,0.00014998,2]
[319609937,1710888646422,-198.89229765,0.00014998,2]
[319609938,1710888646431,-646.03290973,0.00014998,2]
[319609939,1710888646441,-400.76535834,0.00014999,2]
[319609940,1710888646451,-283.75260673,0.00014999,2]
[319609941,1710888646460,-48691.16442849,0.00015,2]
[319609942,1710888646484,-3147.4,0.00015,2]
[319609943,1710888646497,-64900.0000005,0.00015,2]
[319609944,1710888646509,-547.44,0.00015,2]
[319609949,1710888646710,-19501.01377015,0.00015,2]
[319609950,1710888646730,-6292.86871,0.00015,2]
[319609951,1710888664551,372.18809735,0.00014999,5]
[319609952,1710888861357,280.71308786,0.00012,30]
[319609953,1710889023445,505.01630497,0.00012,2]
[319609954,1710889029436,1274.41909867,0.00012,2]
[319610063,1710889832457,-183.81,0.00013912,2]
[319610065,1710889832467,-2165.35441959,0.00013979,2]
[319610068,1710889832477,-1818.02,0.0001398,2]
[319610072,1710889832486,-2118.0,0.00013987,2]
[319610075,1710889832496,-340.82508517,0.00013987,2]
[319610078,1710889832506,-9029.68249525,0.00013987,2]
[319610084,1710889832533,-6319.49999999,0.00013987,2]
[319610096,1710889832597,-71.36444266,0.00013987,2]
[319610098,1710889832610,-3449.66470905,0.00013987,2]
[319610101,1710889832623,-16140.94685248,0.00013987,2]
[319610103,1710889832633,-12742.53062275,0.00013988,2]
[319610105,1710889832643,-150.0,0.0001399,2]
[319610107,1710889832653,-3061.26363012,0.00013998,2]
[319610109,1710889832662,-1060.34235889,0.00013998,2]
[319610111,1710889832672,-4302.00755965,0.00013998,2]
[319610113,1710889832683,-90542.90897611,0.00014,2]
[319610115,1710889832696,-5829.4907181,0.00014,2]
[319610117,1710889832706,-1648.95,0.0001408,2]
[319610119,1710889832716,-3541.21,0.0001415,2]
[319610121,1710889832726,-1759.04963385,0.00014229,2]
[319610124,1710889832738,-802.39746001,0.00014229,2]
[319610126,1710889832750,-1879.825,0.00014229,2]
[319610128,1710889832762,-1718.62846531,0.00014229,2]
[319610130,1710889832774,-6241.0,0.00014229,2]
[319610133,1710889832786,-873.63264011,0.00014229,2]
[319610135,1710889832798,-10625.46680072,0.00014229,2]
[319610137,1710889832808,-8207.34,0.00014399,2]
[319610139,1710889832821,-4921.03,0.00014509,2]
[319610141,1710889832831,-499.99,0.00014509,2]
[319610143,1710889832841,-160.15690147,0.000146,2]
[319610145,1710889832851,-299.99,0.000146,2]
[319610148,1710889832864,-250.0,0.0001462,2]
[319610149,1710889832874,-925.042,0.00014699,2]
[319610152,1710889832884,-1000.0,0.00014699,2]
[319610154,1710889832894,-213.36997347,0.000147,2]
[319610156,1710889832905,-180.464855,0.00014795,2]
[319610158,1710889832916,-534.12503528,0.00014798,2]
[319610160,1710889832928,-107833.2258552,0.00014799,2]
[319610162,1710889832947,-688.97717916,0.00014799,2]
[319610166,1710889832982,-150.0,0.00014657,2]
[319610168,1710889832992,-110.631371,0.00014799,2]
[319610184,1710889833622,239.43,0.00013891,2]
[319610215,1710889838344,-1871.43237019,0.00014799,2]
[319610217,1710889838357,-3676.99999996,0.00014799,2]
[319610219,1710889838369,-438.714725,0.00014799,2]
[319610221,1710889838381,-8618.59601668,0.00014799,2]
[319610222,1710889838393,-1130.60515198,0.00014799,2]
[319610223,1710889838457,-1197.93357264,0.00014799,2]
[319610224,1710889838469,-463.4202856,0.00014799,2]
[319610225,1710889838480,-1876.68369629,0.00014799,2]
[319610226,1710889838492,-259.49297447,0.00014799,2]
[319610227,1710889838508,-1120.363758,0.00014799,2]
[319610228,1710889838522,-6416.63742354,0.00014799,2]
[319610229,1710889838535,-14130.24700479,0.00014799,2]
[319610230,1710889838552,-474.52241608,0.00014799,2]
[319610231,1710889838566,-459.01463883,0.00014799,2]
[319610232,1710889838579,-7445.04905851,0.00014799,2]
[319610233,1710889838593,-7768.1384,0.00014799,2]
[319610234,1710889838606,-7146.2938,0.00014799,2]
[319610235,1710889838618,-19039.27397553,0.00014799,2]
[319610236,1710889838631,-1321.75173715,0.00014799,2]
[319610237,1710889838643,-275.41526501,0.00014799,2]
[319610240,1710889838680,-3280.03637687,0.00014799,2]
[319610241,1710889838698,-3293.69843146,0.00014799,2]
[319610242,1710889838711,-360.1177723,0.00014799,2]
[319610243,1710889838725,-1267.65875993,0.00014799,2]
[319610244,1710889838738,-603.45575644,0.00014799,2]
[319610245,1710889838750,-1143.706933,0.00014799,2]
[319610260,1710889840353,-350.74355795,0.00014799,2]
[319610261,1710889840364,-769.13994734,0.00014799,2]
[319610262,1710889840406,-3182.60000012,0.00014799,2]
[319610263,1710889840417,-13150.73150999,0.00014799,2]
[319610264,1710889840429,-38470.73073951,0.00014799,2]
[319610265,1710889840442,-14483.2898,0.000148,2]
[319610266,1710889840452,-71749.59646441,0.000148,2]
[319610267,1710889840463,-473.04997849,0.000148,2]
[319610268,1710889840475,-587.4769397,0.000148,2]
[319610269,1710889840487,-368.04046622,0.000148,2]
[319610270,1710889840499,-488.2776796,0.000148,2]
[319610271,1710889840629,-250.025776,0.000148,2]
[319610272,1710889840642,-26083.53269558,0.000148,2]
[319610273,1710889840654,-255.93775216,0.000148,2]
[319610274,1710889840664,-216.49660279,0.000148,2]
[319610275,1710889840676,-284.063,0.00014898,2]
[319610276,1710889840688,-2964.94,0.00014899,2]
[319610277,1710889840698,-2280.63753671,0.000149,2]
[319610278,1710889840708,-660.31617038,0.000149,2]
[319610279,1710889840717,-660.31617038,0.000149,2]
[319610280,1710889840727,-660.31617038,0.000149,2]
[319610281,1710889840737,-660.31617038,0.000149,2]
[319610282,1710889840746,-660.31617038,0.000149,2]
[319610283,1710889840755,-660.31617038,0.000149,2]
[319610284,1710889840765,-660.31617038,0.000149,2]
[319610285,1710889840775,-660.31617038,0.000149,2]
[319610286,1710889840786,-660.31617038,0.000149,2]
[319610287,1710889840796,-660.31617038,0.000149,2]
[319610288,1710889840807,-660.31617038,0.000149,2]
[319610289,1710889840817,-660.31617038,0.000149,2]
[319610290,1710889840834,-235.95798628,0.00014998,2]
[319610292,1710889840845,-155.55177531,0.00014998,2]
[319610293,1710889840855,-3223.43399999,0.00014998,2]
[319610294,1710889840865,-1121.52296928,0.00014999,2]
[319610295,1710889840877,-2727.77121477,0.00014999,2]
[319610297,1710889840888,-17399.33366937,0.00015,2]
[319610299,1710889840900,-2098.28,0.00015,2]
[319610301,1710889840911,-4881.21895331,0.00015,2]
[319610310,1710889841152,-311.915,0.00015,2]
[319610311,1710889841164,-2485.21767036,0.00015,2]
[319610312,1710889841176,-267.97857409,0.00015,2]
[319610313,1710889841191,-2778.14654994,0.00015,2]
[319610314,1710889841204,-847.93872448,0.00015,2]
[319610315,1710889841216,-6996.72643291,0.00015,2]
[319610316,1710889841228,-261.355,0.00015,2]
[319610317,1710889841240,-624000.0,0.00015,2]
[319610318,1710889841252,-2109.97814077,0.00015,2]
[319610319,1710889841264,-5441.758176,0.00015,2]
[319610320,1710889841284,-4738650.37765045,0.00015,2]
[319610321,1710889841294,-125578.91730374,0.00015,2]
[319610322,1710889841303,-404.02818898,0.00015,2]
[319610323,1710889841313,-537.22994,0.00015,2]
[319610324,1710889841322,-250.0,0.00015034,2]
[319610325,1710889841331,-164.66,0.00015166,2]
[319610326,1710889841341,-1909.38,0.00015294,2]
[319610327,1710889841351,-180.464855,0.00015616,2]
[319610328,1710889841360,-2456.80328386,0.00015846,2]
[319610329,1710889841370,-186.32733665,0.000159,2]
[319610330,1710889841379,-264.28,0.00015973,2]
[319610331,1710889841389,-365.67,0.00016155,2]
[319610332,1710889841399,-180.464855,0.00016438,2]
[319610333,1710889841408,-484.28,0.00016438,2]
[319610334,1710889841418,-1216.73937758,0.000165,2]
[319610335,1710889841427,-170.47,0.00016712,2]
[319610336,1710889841440,-255.93775213,0.00017211,2]
[319610337,1710889841449,-180.464855,0.0001726,2]
[319610338,1710889841459,-183.81,0.0001739,2]
[319610339,1710889841524,-2280.63753663,0.00017564,2]
[319610340,1710889841534,-2964.94,0.00017639,2]
[319610341,1710889841543,-163.96,0.00017977,2]
[319610342,1710889841552,-643.24708674,0.00018,2]
[319610343,1710889841561,-247.72798089,0.00018,2]
[319610344,1710889841571,-247.72798089,0.00018,2]
[319610345,1710889841580,-247.72798089,0.00018,2]
[319610346,1710889841590,-180.464855,0.00018082,2]
[319610347,1710889841599,-158.55,0.00018096,2]
[319610348,1710889841609,-1644.37933415,0.000181,2]
[319610349,1710889841618,-351.05,0.00018118,2]
[319610350,1710889841627,-12858.85,0.00018135,2]
[319610351,1710889841636,-365.67,0.00018419,2]
[319610352,1710889841645,-180.464855,0.00018904,2]
[319610353,1710889841655,-500.0,0.00019,2]
[319610354,1710889841664,-311.98533966,0.00019,2]
[319610355,1710889841673,-152.99,0.00019109,2]
[319610356,1710889841682,-500.0,0.00019178,2]
[319610357,1710889841694,-152.76547,0.00019178,2]
[319610358,1710889841703,-350.0,0.00019178,2]
[319610359,1710889841712,-447.21818649,0.00019178,2]
[319610360,1710889841721,-152.99,0.00019196,2]
[319610361,1710889841730,-3840.53039433,0.000192,2]
[319610362,1710889841739,-152.99,0.00019283,2]
[319610363,1710889841748,-152.99,0.0001937,2]
[319610364,1710889841757,-152.99,0.00019456,2]
[319610365,1710889841767,-152.99,0.00019543,2]
[319610366,1710889841777,-255.93775213,0.00019623,2]
[319610367,1710889841787,-152.99,0.0001963,2]
[319610368,1710889841796,-152.99,0.00019717,2]
[319610369,1710889841806,-180.464855,0.00019726,2]
[319610370,1710889841816,-152.99,0.00019804,2]
[319610371,1710889841828,-163.05,0.0001984,2]
[319610372,1710889841837,-788.48,0.0001985,2]
[319610373,1710889841847,-152.99,0.00019891,2]
[319610374,1710889841856,-152.99,0.00019978,2]
[319610375,1710889841911,-513.0344331,0.0002,2]
[319610376,1710889841921,-5000.0,0.0002,2]
[319610377,1710889841930,-286.74572755,0.0002,2]
[319610378,1710889841941,-18389.58117776,0.0002,2]
[319610379,1710889841951,-18382.73643529,0.0002,2]
[319610380,1710889841960,-2337.94377861,0.0002,2]
[319610381,1710889841969,-155.0,0.0002,2]
[319610382,1710889841978,-155.0,0.0002,2]
[319610383,1710889841987,-537.22994,0.0002,2]
[319610384,1710889841996,-1023.43396195,0.0002,2]
[319610385,1710889842006,-1023.43396195,0.0002,2]
[319610386,1710889842014,-1023.43396195,0.0002,2]
[319610387,1710889842024,-1023.43396195,0.0002,2]
[319610388,1710889842033,-1023.43396195,0.0002,2]
[319610389,1710889842042,-1023.43396195,0.0002,2]
[319610390,1710889842051,-1023.43396195,0.0002,2]
[319610391,1710889842060,-1023.43396195,0.0002,2]
[319610392,1710889842070,-1023.43396195,0.0002,2]
[319610393,1710889842079,-1023.43396195,0.0002,2]
[319610394,1710889842090,-1023.43396195,0.0002,2]
[319610395,1710889842100,-1023.43396195,0.0002,2]
[319610396,1710889842108,-1023.43396195,0.0002,2]
[319610397,1710889842121,-1023.43396195,0.0002,2]
[319610398,1710889842130,-1023.43396195,0.0002,2]
[319610399,1710889842139,-1023.43396195,0.0002,2]
[319610400,1710889842148,-1023.43396195,0.0002,2]
[319610401,1710889842157,-1023.43396195,0.0002,2]
[319610402,1710889842167,-1023.43396195,0.0002,2]
[319610403,1710889842176,-1023.43396195,0.0002,2]
[319610404,1710889842185,-152.99,0.00020064,2]
[319610405,1710889842196,-256.55,0.00020201,2]
[319610406,1710889842205,-163.96,0.00020224,2]
[319610407,1710889842214,-2280.63753663,0.00020227,2]
[319610408,1710889842223,-151.3,0.00020322,2]
[319610409,1710889842232,-2964.94,0.00020379,2]
[319610410,1710889842241,-180.464855,0.00020548,2]
[319610411,1710889842250,-9845.47,0.00020548,2]
[319610412,1710889842259,-365.67,0.00020683,2]
[319610413,1710889842268,-3238.7,0.00020822,2]
[319610414,1710889842277,-183.81,0.00020868,2]
[319610415,1710889842286,-498.42600078,0.00021,2]
[319610416,1710889842295,-712.01714701,0.00021,2]
[319610417,1710889842304,-945.04,0.00021096,2]
[319610418,1710889842313,-7965.56,0.00021096,2]
[319610419,1710889842322,-158.55,0.00021112,2]
[319610420,1710889842332,-180.464855,0.0002137,2]
[319610421,1710889842341,-44418.90241981,0.00021796,3]
[319610422,1710889842350,-162.11,0.00021918,10]
[319610423,1710889842359,-250.0,0.00021918,2]
[319610424,1710889842369,-890.0,0.00021955,2]
[319610425,1710889842378,-1361.61670232,0.00022,2]
[319610426,1710889842387,-255.93775213,0.00022034,2]
[319610427,1710889842396,-180.464855,0.00022192,2]
[319610428,1710889842406,-788.48,0.00022331,2]
[319610429,1710889842415,-163.96,0.00022471,2]
[319610430,1710889842425,-256.55,0.00022726,2]
[319610431,1710889842433,-655.68735728,0.00022821,3]
[319610432,1710889842447,-655.68735728,0.00022821,3]
[319610433,1710889842457,-2280.63753663,0.00022891,2]
[319610434,1710889842466,-365.67,0.00022947,2]
[319610435,1710889842475,-250.0,0.00023,3]
[319610436,1710889842484,-1508.0,0.000238,2]
[319610437,1710889842494,-158.55,0.00024128,2]
[319610438,1710889842503,-255.93775213,0.00024446,2]
[319610439,1710889842512,-163.96,0.00024718,2]
[319610440,1710889842521,-788.48,0.00024812,2]
[319610441,1710889842531,-155.0,0.00025,2]
[319610442,1710889842540,-300.0,0.00025,3]
[319610443,1710889842549,-380.11595976,0.00025,2]
[319610444,1710889842559,-4935.5773542,0.00025,30]
[319610445,1710889842568,-537.22994,0.00025,2]
[319610446,1710889842578,-365.67,0.00025211,2]
[319610447,1710889842588,-256.55,0.00025251,120]
[319610448,1710889842598,-2280.63753663,0.00025555,2]
[319610449,1710889842607,-155.0,0.00025745,2]
[319610450,1710889842616,-278.0,0.00025745,2]
[319610451,1710889842626,-16346.675,0.00025745,2]
[319610452,1710889842636,-269.0,0.0002577,2]
[319610453,1710889842646,-1508.7530829,0.000266,2]
[319610454,1710889842656,-167399.16039342,0.00026753,2]
[319610455,1710889842666,-66621.78645225,0.00026753,5]
[319610456,1710889842676,-118127.26584139,0.00026753,2]
[319610457,1710889842685,-2909.30233762,0.00026753,2]
[319610458,1710889842702,-4657.79360279,0.00026753,2]
[319610459,1710889842710,-220.58621505,0.00026753,2]
[319610460,1710889842719,-174.24014786,0.00026753,2]
[319610461,1710889842729,-12172.88633358,0.00026753,2]
[319610462,1710889842739,-132896.46522764,0.00026753,2]
[319610463,1710889842749,-158.67042517,0.00026753,2]
[319610464,1710889842758,-20963.01739445,0.00026753,2]
[319610465,1710889842768,-100000.0,0.00026753,2]
[319610466,1710889842778,-155.0,0.00026753,2]
[319610467,1710889842787,-90159.21593929,0.00026753,2]
[319610468,1710889842797,-500.0,0.00026753,120]
[319610469,1710889842807,-197.0,0.00026753,120]
[319610470,1710889842816,-255.93775213,0.00026857,3]
[319610471,1710889842829,-163.96,0.00026965,2]